Cogmind - Beta 9.6 *** ADVENTURER MODE // 2020.05.16 @ 17:51:47 Player: Cubemaster Result: Destroyed by as-80359 with Assembled Blade Performance ------------- Evolutions (0) 0 Regions Visited (2) 400 Robots Destroyed (5) 25 Value Destroyed (34) 34 Prototype IDs (0) 0 Alien Tech Used (0) 0 Bonus (0) 0 TOTAL SCORE: 459 Bonus ------- None Cogmind --------- Core Integrity 0/250 Matter 300/300 Energy 100/100 System Corruption 0% Temperature Cool (0) Movement Core (300) Ox5 Location -10/Mines Parts ------- > --- POWER (1) -------- (None) > --- PROPULSION (2) --- (None) > --- UTILITY (2) ------ Large Storage Unit > --- WEAPON (2) ------- (None) > --- INVENTORY (10) --- Ion Engine Ion Engine Aluminum Leg Aluminum Leg Heat Sink Small Storage Unit ECM Suite ECM Suite Slug Cannon Peak State ------------ > --- POWER ------------ Ion Engine > --- PROPULSION ------- Light Treads Light Treads > --- UTILITY ---------- Large Storage Unit Sensor Array > --- WEAPON ----------- EM Pulse Gun EM Pulse Gun > --- INVENTORY -------- Ion Engine Ion Engine Aluminum Leg Aluminum Leg Heat Sink Small Storage Unit ECM Suite ECM Suite Small Laser Slug Cannon [Rating: 8] Favorites ----------- Power Ion Engine Engine Ion Engine Propulsion Light Treads Treads Light Treads Utility Large Storage Unit Device Sensor Array Storage Large Storage Unit Weapon EM Pulse Gun Energy Gun EM Pulse Gun Build | -11 -10 -10 ------- Run | Scr Mat Min Slots Evolved . | . . . Power . | . . . Propulsion . | . . . Utility . | . . . Weapon . | . . . Parts Attached 10 | 6 3 1 Power 1 | 1 . . Engine 1 | 1 . . Core . | . . . Reactor . | . . . Propulsion 2 | 2 . . Treads 2 | 2 . . Leg . | . . . Wheel . | . . . Hover . | . . . Flight . | . . . Utility 4 | 1 3 . Device 2 | . 2 . Storage 2 | 1 1 . Processor . | . . . Hackware . | . . . Protection . | . . . Artifact . | . . . Weapon 3 | 2 . 1 Energy Gun 3 | 2 . 1 Energy Cannon . | . . . Ballistic Gun . | . . . Ballistic Cannon . | . . . Launcher . | . . . Special Weapon . | . . . Impact Weapon . | . . . Slashing Weapon . | . . . Piercing Weapon . | . . . Special Melee Weapon . | . . . Unidentified Prototypes . | . . . Parts Lost 7 | . . 7 Power 1 | . . 1 Propulsion 2 | . . 2 Utility 1 | . . 1 Weapon 3 | . . 3 Highest Loss Streak 7 | . . 7 Average Slot Usage (%) 96 | . 97 96 Engine 14 | . 14 14 Treads 27 | . 28 27 Device 12 | . 12 12 Storage 14 | . 14 14 Energy Gun 26 | . 28 26 Naked Turns . | . . . Heaviest Build 26 | 13 26 26 Greatest Support 40 | 40 40 40 Greatest Overweight (x) 5 | . . 5 Average Overweight (x) . | . . . Largest Inventory Capacity 10 | 6 10 10 Average Capacity 8 | 5 8 10 Most Carried 10 | 4 9 10 Average Carried 6 | 2 6 9 Final Capacity 10 | 6 10 10 Final Carried 9 | 4 9 9 Class Distribution -------------------- 100% | Mutant Dominant Class ---------------- Mutant | -10/Materials Mutant | -10/Mines Resources | -11 -10 -10 ----------- Run | Scr Mat Min Matter Collected 290 | 216 50 24 Remotely . | . . . Salvage Created 120 | . 50 70 Parts 5 | . 5 . Haulers Intercepted . | . . . Recyclers Shooed . | . . . Parts Field Recycled . | . . . Retrieved Matter . | . . . Parts Self-Destructed . | . . . Prevented . | . . . Kills | -11 -10 -10 ------- Run | Scr Mat Min Combat Hostiles Destroyed 5 | . 1 4 Guns 5 | . 1 4 Classes Destroyed 2 | . 1 1 Grunt 1 | . 1 . Assembled 4 | . . 4 Best Kill Streak 2 | . 1 2 Combat Bots Only 2 | . 1 2 Max Kills in Single Turn 1 | . 1 1 Gunslinging . | . . . Exploded . | . . . Melee . | . . . Uniques/NPCs Destroyed . | . . . Combat | -11 -10 -10 -------- Run | Scr Mat Min Damage Taken 841 | . 17 824 Core 271 | . . 271 Absorbed by Shields . | . . . Core Remaining (%) 100 | 100 . . Volleys Fired 15 | . 2 13 Largest 2 | . 2 2 Hottest 80 | . 80 80 Shots Fired 29 | . 4 25 Gun 29 | . 4 25 Cannon . | . . . Launcher . | . . . Special . | . . . Kinetic . | . . . Thermal 4 | . . 4 Explosive . | . . . Electromagnetic 25 | . 4 21 Robot Hit Streak 14 | . 3 14 Robot Miss Streak 1 | . . 1 Penetration Max . | . . . Secondary Targets 1 | . . 1 Max Gunslinging Chain 1 | . . 1 Shots Hit Robots 23 | . 3 20 Core Hits 12 | . 2 10 Critical Hits . | . . . Critical Kills . | . . . Critical Parts Destroyed . | . . . Melee Attacks . | . . . Impact . | . . . Slashing . | . . . Piercing . | . . . Sneak Attacks . | . . . Combat Hostiles . | . . . Follow-up Attacks . | . . . Damage Inflicted 246 | . 39 207 Guns 245 | . 39 206 Cannons . | . . . Explosions . | . . . Melee . | . . . Ramming 1 | . . 1 Kinetic . | . . . Thermal 32 | . . 32 Explosive . | . . . Electromagnetic 213 | . 39 174 Impact . | . . . Slashing . | . . . Piercing . | . . . Highest Corruption . | . . . Average Corruption . | . . . Corruption Purged . | . . . Overload Shots . | . . . Overflow Damage . | . . . Projectiles . | . . . Explosions . | . . . Melee . | . . . Knockbacks . | . . . Impact . | . . . Kinetic . | . . . Secondary . | . . . Self-Inflicted Damage . | . . . Shots . | . . . Rammed 2 | . . 2 Targets Rammed 2 | . . 2 Kicked . | . . . Crushed . | . . . Highest Temperature 90 | . 48 90 Average Temperature 33 | . 26 34 Received Heat Transfer 32 | . 12 20 Siege Activations . | . . . Robots Corrupted . | . . . Combat Hostiles . | . . . Parts Fried . | . . . Impact Corruptions . | . . . Robots Melted . | . . . Combat Hostiles . | . . . Parts Melted . | . . . Heat Transferred 75 | . . 75 Parts Sabotaged . | . . . Parts Stolen . | . . . Parts Stripped . | . . . Power Chain Reactions . | . . . Missiles Intercepted . | . . . Alert | -11 -10 -10 ------- Run | Scr Mat Min Peak Influence 21 | . 20 21 Average Influence 4 | . 3 6 Maximum Alert Level . | . . . Low Security (%) 100 | 100 100 100 Level 1 . | . . . Level 2 . | . . . Level 3 . | . . . Level 4 . | . . . Level 5 . | . . . High Security . | . . . Max Security . | . . . Squads Dispatched . | . . . Investigation . | . . . Extermination . | . . . Reinforcement . | . . . Assault . | . . . Garrison . | . . . Intercept . | . . . Construction Impeded . | . . . Haulers Reinforced . | . . . Stealth | -11 -10 -10 --------- Run | Scr Mat Min Distress Signals . | . . . Communications Jammed . | . . . Distress Signals . | . . . Times Spotted 13 | . 1 12 Peak Tracking Total 7 | . 1 7 Tactical Retreats 1 | . . 1 Traps | -11 -10 -10 ------- Run | Scr Mat Min Traps Triggered . | . . . Indirectly . | . . . Trap Hack Attempts . | . . . Triggered . | . . . Disarmed . | . . . Reprogrammed . | . . . Reused . | . . . Traps Extracted . | . . . Installed . | . . . Triggered . | . . . Machines | -11 -10 -10 ---------- Run | Scr Mat Min Machines Disabled . | . . . Max in Single Turn . | . . . Machines Sabotaged . | . . . Garrisons Compromised . | . . . Overloaded Fab Kills . | . . . Fab Network Shutdowns . | . . . Hacking | -11 -10 -10 --------- Run | Scr Mat Min Machines Accessed . | . . . Terminals . | . . . Fabricators . | . . . Repair Stations . | . . . Recycling Units . | . . . Scanalyzers . | . . . Garrison Access . | . . . Total Hacks . | . . . Successful . | . . . Failed . | . . . Catastrophic . | . . . Database Lockouts . | . . . Manual . | . . . Terminals . | . . . Fabricators . | . . . Repair Stations . | . . . Recycling Units . | . . . Scanalyzers . | . . . Garrison Access . | . . . Terminal Hacks . | . . . Fabricator Hacks . | . . . Repair Station Hacks . | . . . Recycling Unit Hacks . | . . . Scanalyzer . | . . . Garrison Access Hacks . | . . . Unauthorized Hacks . | . . . Terminals . | . . . Fabricators . | . . . Repair Stations . | . . . Recycling Units . | . . . Scanalyzers . | . . . Garrison Access . | . . . Data Cores Recovered . | . . . Used . | . . . Hacking Detections . | . . . Full Trace Events . | . . . Feedback Events . | . . . Feedback Blocked . | . . . Robot Schematics Acquired . | . . . Robots Built . | . . . Matter . | . . . Time . | . . . Total Robot Build Rating . | . . . Part Schematics Acquired . | . . . Parts Built . | . . . Matter . | . . . Time . | . . . Total Part Build Rating . | . . . Parts Repaired . | . . . Time . | . . . Parts Recycled . | . . . Recycled Matter . | . . . Retrieved Matter . | . . . Retrieved Components . | . . . Parts Scanalyzed . | . . . Part Schematics Acquired . | . . . Parts Damaged . | . . . Bothacking | -11 -10 -10 ------------ Run | Scr Mat Min Used RIF Installer . | . . . Robots Hacked . | . . . Non-combat . | . . . Combat . | . . . Robot Hacks Applied . | . . . Relay Couplers Released . | . . . Robots Rewired . | . . . Allies Hacked . | . . . Hacks Repelled . | . . . Allies | -11 -10 -10 -------- Run | Scr Mat Min Total Allies . | . . . Largest Group . | . . . Highest-Rated Group . | . . . Highest-Rated Ally . | . . . Total Orders . | . . . Ally Attacks . | . . . Total Damage . | . . . Kills . | . . . Allies Corrupted . | . . . Allies Melted . | . . . Intel | -11 -10 -10 ------- Run | Scr Mat Min Robot Analysis Total . | . . . Derelict Logs Recovered 2 | . . 2 Drone Launches . | . . . Drone Recoveries . | . . . Exploration | -11 -10 -10 ------------- Run | Scr Mat Min Turns Passed 508 | 122 143 243 Spaces Moved 231 | 55 70 106 Core 4 | 2 . 2 Treads 227 | 53 70 104 Legs . | . . . Wheels . | . . . Hover . | . . . Flight . | . . . Fastest Speed 50 | 50 160 160 Average Speed 160 | 156 160 162 Slowest Speed 300 | 160 160 300 Overloaded Moves . | . . . Propulsion Burnouts . | . . . Robots Hopped . | . . . Cave-ins Triggered . | . . . Exploration Rate (%) 14 | 4 14 26 Regions Visited 2 Branch Regions 1 Pre-discovered Areas 2 | . . 2 Known Exits Taken . | . . . Unknown Exits Taken 2 | 1 1 . Scrap Searched . | . . . Spaces Dug . | . . . Terrain Destroyed . | . . . Melee . | . . . Projectile . | . . . AOE . | . . . Actions | -11 -10 -10 --------- Run | Scr Mat Min Total 334 | 88 96 150 Wait 69 | 24 18 27 Move 229 | 54 69 106 Hop . | . . . Pick Up 9 | 4 4 1 Fast Attach 7 | 6 1 . Attach 1 | . . 1 Detach . | . . . Swap 2 | . 2 . Drop . | . . . Fire 15 | . 2 13 Melee . | . . . Ram . | . . . Kick . | . . . Crush 2 | . . 2 Escape Stasis . | . . . Rewire . | . . . Trap . | . . . Miscellaneous . | . . . Route ------- -11/Scrapyard -10/Materials -10/Mines History --------- Turn | Location | Event 7 | -11/Scrapyard | Discovered new exit (range 15) 123 | -11/Scrapyard | Entered Materials 156 | -10/Materials | Discovered new exit (range 16) 266 | -10/Materials | Entered Mines 268 | -10/Mines | A weapon hastily lodged in a ceiling crevice suddenly fell to the ground 307 | -10/Mines | Build established: Mutant 340 | -10/Mines | Assembled infested the area 362 | -10/Mines | Learned location of Zion (-7) 368 | -10/Mines | Learned location of Mines (-9) 491 | -10/Mines | Core integrity fell below 50% 507 | -10/Mines | Core integrity fell below 20% 509 | -10/Mines | Destroyed by as-80359 with Assembled Blade Last Messages --------------- World map updated: -9/Mines. as-02139 destroyed. Acquired 20 matter. Destroyed Asb. Hover Unit. as-11402 destroyed. Acquired 4 matter. as-94717 destroyed. Destroyed Asb. Hover Unit. EM Pulse Gun destroyed. Sensor Array destroyed. as-62960 destroyed. Switching to secondary target: as-44790. EM Pulse Gun destroyed. Slammed into as-80359. as-44790 misfires. Sml. Laser destroyed. Lgt. Treads destroyed. Ion Engine destroyed. Slammed into as-82802. Lgt. Treads destroyed. Map ----- +----------------------------------------------------+ | ???????????????????????????????????? | | ???????????????????????????????????? | | ???????????????????????????????????? | | ???????????????????????????????????? | | ???????????????????????????????????? | | ???????????????????????????????????? | | ???????????????????????????????????? | | ???????????????????????##########??? | | ??????????????????????? #??? | | ?????????????????????????"" """ #### | | ?????????????????????????"" """ | | ???????#?????????????????"" """ #### | | ???????# ?????????????? #??? | | ???????# ??????????????####### ##??? | | ???????#%????????????????????# ????? | | ???????#!????????????????????# ????? | | ???????# ???????????????????# ????? | | ???????# ????????# ##????# ????? | | ??????## ?????????# # ##### | | ?????## #???????????# | | ?????# ##??????????### ######## | | ?????# #?????????????????????## | | ?????+*= ######???????????####?# | | ?????+%! % ## ##???###????# ### | | ?????#!| a a ##?## #????# % | | ?????# @a!% ### ###### ### | | ?????# ## a% a %% % #?? | | ??????????##a % a% #?? | | ???????????## ### ##?? | | ????????????## ### ##?# #??? | | ?????????????####?# #####?# #??? | | ??????????????????# #????# #??? | | ??????????????????# #????# #??? | | ??????????????????# #???? " ??? | | ??????????????????# #???# ##?? | | ??????????????????# ???# ##??? | | ??????????????????# ???## ##???? | | ??????????????????### ????## #?????? | | ????????????????????? ????##??????? | | ????????????????????? ????????????? | | ????????????????????? ????????????? | | ????????????????????? ????????????? | | ????????????????????? ?????????????? | | ???????????????????????????????????? | | ???????????????????????????????????? | | ???????????????????????????????????? | | ???????????????????????????????????? | | ???????????????????????????????????? | | ???????????????????????????????????? | | ???????????????????????????????????? | +----------------------------------------------------+ Best States ------------- Heat Dissipation 25 Energy Generation 10 Energy Capacity 250 Matter Stores 300 Matter Capacity 300 Sight Range 16 Robot Scan Range 10 Terrain Scan Density 10 ECM Strength 1 Resistance: KI 20 Resistance: TH 20 Resistance: EX 20 Resistance: EM 20 Resistance: I 20 Resistance: S 20 Resistance: P 20 Evasion (%) 40 Recoil Reduction 2 Offensive Hacking 10 Item Schematics ----------------- None Robot Schematics ------------------ None Fabricated ------------ Nothing Alien Tech Used ----------------- None Achievements -------------- None Challenges ------------ None Game ------ Seed ScanOmegaFlamer Manual? 0 Play Time 00:10:43 Cumulative 15.0 hours Start 2020.05.16 @ 17:43:52 End 2020.05.16 @ 17:51:47 Sessions 1 Manual Loads 0 Difficulty Adventurer Special Mode None Game No. 18 Rogue 17 Adventurer 1 Explorer 0 Win Type - Total 0 Types 0/0/0/0/0/0/0 Lore% 23 Gallery% 27 Achievement% 13 Wizard Run 0 Options --------- ASCII 0 Keyboard 0 Movement Mouse Keybinds 0 Fullscreen 1 Font 18/SmallcapsGlow Map View 76x50 Tactical HUD 0 Map Filters NONE Filters NONE Steam 1 RUN: da330528-403b-40eb-b1ff-10557701b78e